Cogmind - Beta 15 @@@ ROGUE MODE // 2025.08.29 @ 23:52:22 Player: winnking222 Result: Destroyed by S-43 Plague with Heavy Machine Gun Performance ------------- Evolutions (8) 4000 Regions Visited (14) 2800 Robots Destroyed (141) 705 Value Destroyed (6808) 6808 Prototype IDs (107) 2140 Alien Tech Used (1) 200 Bonus (2958) 2958 TOTAL SCORE: 19611 Bonus ------- High Alert Combat Kills 2939 Follower Combat Kills 297 Registered with UFD 300 Met Optimus in HQ 500 Scanned by Researcher 500 Met Optimus at Protoforge 1000 Friendly Fire -2578 Cogmind --------- Core Integrity 0/1450 Matter 286/300 Energy 18/100 System Corruption 13% Temperature Cool (0) Movement Core (50) Location -2/Protoforge Parts ------- > --- POWER (2) -------- (None) > --- PROPULSION (8) --- (None) > --- UTILITY (10) ----- (None) > --- WEAPON (3) ------- (None) > --- INVENTORY (5) ---- Improved Core Shielding Centrium Light Armor Plating Core Cannon Peak State ------------ > --- POWER ------------ Light Antimatter Reactor Light Quantum Reactor Light Quantum Reactor > --- PROPULSION ------- Myomer Leg Myomer Leg Biometal Leg Biometal Leg Enhanced Biometal Leg Enhanced Biometal Leg Experimental VSS Leg Experimental VSS Leg Experimental VSS Leg > --- UTILITY ---------- Scrap Suit Experimental Heat Sink Medium Storage Unit Advanced Sensor Array Experimental Core Analyzer Experimental Reaction Control System Centrium Medium Armor Plating Tower Shield > --- WEAPON ----------- Enhanced Quantum Rifle Enhanced Quantum Rifle Fusion Bomb Launcher > --- INVENTORY -------- Advanced Cooling System Deep Structural Scanner Core Cannon Heavy Machine Gun Overtuned Railgun Ionic Axe Large Botcube [Rating: 207] Favorites ----------- Power Subdweller Power Source Engine Subdweller Power Source Power Core Light Fission Core Reactor Light Quantum Reactor Propulsion Wheel Treads Spiked Treads Leg Experimental VSS Leg Wheel Wheel Flight Unit Nuclear Pulse Thruster Utility Medium Storage Unit Device Deep Structural Scanner Storage Medium Storage Unit Processor Advanced Signal Interpreter Hackware Advanced Hacking Suite Protection Centrium Medium Armor Plating Weapon Subdweller Machine Gun Energy Gun Enhanced Quantum Rifle Energy Cannon Core Cannon Ballistic Gun Subdweller Machine Gun Launcher Fusion Bomb Launcher Special Weapon Junk Cannon Slashing Weapon Ionic Axe Special Melee Weapon Dirty Datajack Build | -11 -10 -10 -10 -8 -8 -6 -5 -4 -4 -4 -3 -2 -2 -2 ------- Run | Yrd Mat Min Sub Rec Scr Fac Fac Fac Was Fac Res Res Qua Frg Slots Evolved 16 | . . . . . . 8 2 2 . . 2 2 . . Power 1 | . . . . . . 1 . . . . . . . . Propulsion 6 | . . . . . . 5 . . . . 1 . . . Utility 8 | . . . . . . 2 2 2 . . 1 1 . . Weapon 1 | . . . . . . . . . . . . 1 . . Parts Attached 165 | 7 5 . 19 1 7 22 15 2 1 1 6 12 5 62 Power 22 | 1 2 . 4 . 1 3 2 . . . 1 1 1 6 Engine 8 | 1 2 . 4 . 1 . . . . . . . . . Core 5 | . . . . . . 2 2 . . . 1 . . . Reactor 9 | . . . . . . 1 . . . . . 1 1 6 Propulsion 55 | 2 . . 5 . . 11 5 . . . 4 3 1 24 Treads 3 | 2 . . 1 . . . . . . . . . . . Leg 18 | . . . 2 . . . . . . . . . . 16 Wheel 4 | . . . 2 . . . . . . . . . . 2 Hover . | . . . . . . . . . . . . . . . Flight 30 | . . . . . . 11 5 . . . 4 3 1 6 Utility 56 | 2 1 . 4 . 3 5 6 2 1 1 1 6 2 22 Device 23 | 1 . . 2 . 1 3 3 1 1 . 1 5 1 4 Storage 5 | 1 1 . 1 . 1 . . . . . . . . 1 Processor 9 | . . . . . . 1 1 1 . 1 . . 1 4 Hackware 2 | . . . . . . . 2 . . . . . . . Protection 17 | . . . 1 . 1 1 . . . . . 1 . 13 Artifact . | . . . . . . . . . . . . . . . Weapon 32 | 2 2 . 6 1 3 3 2 . . . . 2 1 10 Energy Gun 3 | . . . . . . . . . . . . 1 . 2 Energy Cannon 2 | . . . . . . . 1 . . . . . 1 . Ballistic Gun 20 | 2 1 . 5 1 2 1 . . . . . . . 8 Ballistic Cannon . | . . . . . . . . . . . . . . . Launcher 3 | . 1 . 1 . . . . . . . . 1 . . Special Weapon 1 | . . . . . 1 . . . . . . . . . Impact Weapon . | . . . . . . . . . . . . . . . Slashing Weapon 2 | . . . . . . 1 1 . . . . . . . Piercing Weapon . | . . . . . . . . . . . . . . . Special Melee Weapon 1 | . . . . . . 1 . . . . . . . . Unidentified Prototypes 29 | . . . 1 . 1 3 2 . 1 . 3 5 3 10 Parts Lost 52 | . 1 . 7 . . 7 3 . . 2 2 4 3 23 Power 8 | . 1 . 1 . . 1 . . . 1 . 1 . 3 Propulsion 20 | . . . 3 . . 5 3 . . . 1 1 1 6 Utility 16 | . . . 1 . . 1 . . . 1 1 2 1 9 Weapon 8 | . . . 2 . . . . . . . . . 1 5 Highest Loss Streak 5 | . 1 . 3 . . 4 2 . . 1 1 4 3 5 To Critical Strikes 3 | . . . 1 . . . . . . . . . . 2 Average Backups 12 | 4 11 13 15 21 18 6 6 6 6 6 6 6 5 5 Power 1 | . . . 1 2 1 . . . . . . 1 1 . Propulsion 1 | 2 3 3 . 1 3 . . . . . 1 . . 1 Utility 4 | . 2 4 5 6 5 4 4 5 5 5 4 3 2 1 Weapon 4 | . 4 6 7 11 6 1 . 1 1 1 1 . 1 2 Tool/Special . | . . . . . . . . . . . . . . . Unused Backups 27 | . . . 5 1 10 6 . . . . 2 . . 3 Power 2 | . . . . . 2 . . . . . . . . . Propulsion 3 | . . . . . . 3 . . . . . . . . Utility 6 | . . . 1 . 1 1 . . . . 1 . . 2 Weapon 15 | . . . 4 1 7 1 . . . . 1 . . 1 Tool/Special 1 | . . . . . . 1 . . . . . . . . Average Slot Usage (%) 85 | . 99 100 99 100 74 88 85 81 89 87 88 89 89 65 Engine 8 | . 13 14 13 14 12 5 . . . . . . . . Core 1 | . . . . . . 1 7 10 10 8 8 4 4 . Reactor 1 | . . . . . . . . . . . . 3 4 6 Treads 9 | . 27 28 10 14 14 . . . . . . . . . Leg 4 | . . . 5 . . . . . . . . . . 16 Wheel 6 | . . . 11 14 14 . . . . . . . . . Flight 7 | . . . . . . 39 31 26 26 26 27 29 29 5 Device 10 | . 14 14 12 14 2 12 13 12 15 15 13 16 18 8 Storage 9 | . 14 14 14 14 13 6 5 5 5 5 4 4 4 3 Processor 2 | . . . . . . . 5 6 10 10 9 8 8 4 Hackware 1 | . . . . . . . 6 10 10 10 9 8 8 . Protection 2 | . . . 1 . 1 6 . . . . 3 3 2 6 Ballistic Gun 15 | . 27 28 27 28 16 5 . . . . . . . 7 Peak Build Rating 207 | 7 8 8 20 21 31 63 97 109 111 109 123 146 169 207 Average Rating 59 | 5 7 8 15 20 17 53 76 101 108 106 120 136 143 155 On Entrance 64 | . 7 8 8 20 21 26 59 97 109 109 96 122 144 144 Naked Turns 2 | . . . . . . . . . . . . . . 2 Heaviest Build 128 | 12 30 30 93 93 100 32 30 32 32 32 46 51 49 128 Greatest Support 244 | 40 40 40 40 10 10 40 45 45 45 45 53 66 69 244 Greatest Overweight (x) 9 | . 2 . 9 9 9 . . . . . . . . 2 Average Overweight (x) 1 | . . . 4 9 6 . . . . . . . . . Largest Inventory Capacity 25 | 8 15 15 25 25 25 25 10 10 10 10 10 10 10 25 Average Capacity 16 | 7 13 15 18 25 23 10 10 10 10 10 10 10 10 12 Most Carried 25 | 7 15 14 24 25 25 24 10 10 10 10 10 10 10 25 Average Carried 15 | 4 11 13 17 24 22 10 9 9 9 9 9 9 9 10 Final Capacity 25 | 8 15 15 25 25 25 10 10 10 10 10 10 10 10 5 Final Carried 25 | 6 13 14 24 25 25 10 10 9 10 10 10 10 9 4 Class Distribution -------------------- 58% | Mutant 9% | Scavenger-Scrapper 8% | Hacker-Scout 6% | Hacker-Ninja 3% | Scavenger-Tank Dominant Class ---------------- Mutant | -10/Materials Mutant | -10/Mines Mutant | -10/Subcaves Mutant | -8/Recycling Mutant | -8/Scraptown Sprinter | -6/Factory Hacker-Scout | -5/Factory Hacker-Scout | -4/Factory Hacker-Scout | -4/Waste Hacker-Scout | -4/Factory Hacker-Scout | -3/Research Hacker-Ninja | -2/Research Hacker-Ninja | -2/Quarantine Scavenger-Scrapper | -2/Protoforge Resources | -11 -10 -10 -10 -8 -8 -6 -5 -4 -4 -4 -3 -2 -2 -2 ----------- Run | Yrd Mat Min Sub Rec Scr Fac Fac Fac Was Fac Res Res Qua Frg Matter Collected 6317 | 310 437 95 587 47 272 302 253 . . 79 . 389 . 3546 Remotely . | . . . . . . . . . . . . . . . Salvage Created 6377 | 181 242 . 481 27 . 115 196 . . . . 391 . 4744 Parts 362 | 14 22 . 46 4 . 6 13 . . . . 16 . 241 Haulers Intercepted . | . . . . . . . . . . . . . . . Recyclers Shooed 1 | 1 . . . . . . . . . . . . . . Parts Field Recycled . | . . . . . . . . . . . . . . . Retrieved Matter . | . . . . . . . . . . . . . . . Parts Self-Destructed 11 | . . . 11 . . . . . . . . . . . Prevented . | . . . . . . . . . . . . . . . Kills | -11 -10 -10 -10 -8 -8 -6 -5 -4 -4 -4 -3 -2 -2 -2 ------- Run | Yrd Mat Min Sub Rec Scr Fac Fac Fac Was Fac Res Res Qua Frg Combat Hostiles Destroyed 107 | . 12 . 12 . . 3 3 . . . . 2 . 75 Melee 7 | . . . . . . 2 3 . . . . 2 . . Guns 66 | . 5 . 8 . . . . . . . . . . 53 AOE 33 | . 7 . 4 . . 1 . . . . . . . 21 Classes Destroyed 24 | 2 5 . 3 . . 1 1 . . . . . . 12 Worker 3 | . . . . . . 1 . . . . . 2 . . Builder 3 | . 2 . . 1 . . . . . . . . . . Tunneler 5 | 4 1 . . . . . . . . . . . . . Recycler 3 | 1 . . . . . . . . . . . 2 . . Mechanic 7 | . . . . . . . . . . . . . . 7 Operator 2 | . 1 . . . . . . . . . . . . 1 Drone 11 | . . . . . . . . . . . . . . 11 Turret 1 | . . . 1 . . . . . . . . . . . Watcher 5 | . 3 . . . . 1 . . . . . 1 . . Swarmer 26 | . 9 . 4 . . 3 . . . . . 2 . 8 Saboteur 2 | . . . . . . . . . . . . . . 2 Grunt 12 | . 3 . . . . . . . . . . . . 9 Brawler 4 | . . . . . . . . . . . . . . 4 Duelist 4 | . . . . . . . . . . . . . . 4 Protector 3 | . . . . . . . . . . . . . . 3 Sentry 2 | . . . 1 . . . 1 . . . . . . . Hunter 6 | . . . . . . . . . . . . . . 6 Programmer 13 | . . . . . . . 2 . . . . . . 11 Hotshot 3 | . . . . . . . . . . . . . . 3 Decapitator 3 | . . . . . . . . . . . . . . 3 Striker 4 | . . . . . . . . . . . . . . 4 Executioner 7 | . . . . . . . . . . . . . . 7 Subdweller 7 | . . . 7 . . . . . . . . . . . Scrapoid 4 | . . . . . . . . . . . . . . 4 Scraphulk 1 | . . . . . . . . . . . . . . 1 Best Kill Streak 19 | 5 4 . 5 1 . 1 2 . . . . 3 . 19 Combat Bots Only 14 | . 3 . 4 . . 1 2 . . . . 2 . 14 Max Kills in Single Turn 3 | 1 3 . 3 1 . 1 1 . . . . 1 . 3 Gunslinging 1 | . . . . . . . . . . . . . . 1 Exploded 3 | . 3 . 3 . . 1 . . . . . . . 2 Melee 1 | . . . . . . 1 1 . . . . 1 . . Uniques/NPCs Destroyed . | . . . . . . . . . . . . . . . Combat | -11 -10 -10 -10 -8 -8 -6 -5 -4 -4 -4 -3 -2 -2 -2 -------- Run | Yrd Mat Min Sub Rec Scr Fac Fac Fac Was Fac Res Res Qua Frg Hostile Shots Fired 859 | . 52 1 47 2 . 71 31 . . 29 17 39 11 559 Missed 378 | . 18 . 15 . . 38 14 . . 19 9 18 5 242 Hits 481 | . 34 1 32 2 . 33 17 . . 10 8 21 6 317 Melee 15 | . . . . . . . . . . . . . . 15 Projectile 466 | . 34 1 32 2 . 33 17 . . 10 8 21 6 302 AOE 8 | . . . 6 . . . . . . . . . . 2 Critical Strikes 22 | . . . 1 1 . . . . . . . . . 20 Part Disruptions 1 | . . . . . . . . . . . . . . 1 Damage Taken 12984 | . 362 18 886 29 . 440 327 . . 220 198 813 119 9572 Core 1822 | . 66 18 152 . . 43 99 . . 25 25 88 . 1306 Absorbed by Shields 13 | . . . . . . . 5 . . . . . . 8 Redirected to Shielding 83 | . . . . . . . . . . . . . . 83 Ignored by Resistances 55 | . . . . . . . . . . . . . . 55 Regen/Repaired (Parts) 191 | . . . . . . . . . . 37 . . . 154 Core Remaining (%) 80 | 100 . . . . 5 94 90 . . 97 98 . . . Volleys Fired 326 | 10 42 4 59 3 . 9 . . . . . 3 . 196 Largest 3 | 2 2 2 2 2 . 2 . . . . . 1 . 3 Hottest 300 | 40 50 40 60 58 . 46 . . . . . 52 . 300 Shots Fired 750 | 20 77 8 113 6 . 18 . . . . . 3 . 505 Gun 706 | 20 65 8 106 6 . 18 . . . . . . . 483 Cannon 3 | . . . . . . . . . . . . . . 3 Launcher 41 | . 12 . 7 . . . . . . . . 3 . 19 Special . | . . . . . . . . . . . . . . . Kinetic 686 | 20 65 8 106 6 . 18 . . . . . . . 463 Thermal 23 | . . . . . . . . . . . . . . 23 Explosive 41 | . 12 . 7 . . . . . . . . 3 . 19 Electromagnetic . | . . . . . . . . . . . . . . . Robot Hit Streak 17 | 6 4 1 17 3 . 7 . . . . . . . 9 Robot Miss Streak 8 | 2 4 1 3 4 . 4 . . . . . . . 8 Penetration Max 2 | . . . . . . . . . . . . . . 2 Secondary Targets 16 | . 1 . . . . . . . . . . . . 15 Max Gunslinging Chain 1 | . 1 . . . . . . . . . . . . 1 Shots Hit Robots 346 | 13 40 1 52 3 . 19 6 . . . . 11 2 199 Core Hits 304 | 6 26 . 30 1 . 7 3 . . . . 6 . 225 Critical Kills 11 | . . . . . . . . . . . . . . 11 Critical Parts Destroyed 25 | . . . . . . . . . . . . . . 25 Critical Strikes 40 | . . . . . . 1 1 . . . . . 1 37 Destroy 37 | . . . . . . . . . . . . . . 37 Sever 3 | . . . . . . 1 1 . . . . . 1 . Melee Attacks 152 | . . . . . . 32 43 3 . 11 7 35 12 9 Impact . | . . . . . . . . . . . . . . . Slashing 142 | . . . . . . 28 43 3 . 11 7 29 12 9 Piercing 10 | . . . . . . 4 . . . . . 6 . . Sneak Attacks 9 | . . . . . . 3 2 . . . . 4 . . Combat Hostiles 3 | . . . . . . 3 . . . . . . . . Follow-up Attacks . | . . . . . . . . . . . . . . . Damage Inflicted 25211 | 147 1127 26 1180 59 . 534 362 . . . . 757 118 20901 Guns 13366 | 147 413 26 897 59 . 128 . . . . . . . 11696 Cannons 600 | . . . . . . . . . . . . . . 600 Explosions 9416 | . 696 . 283 . . . . . . . . . . 8437 Melee 1726 | . . . . . . 406 362 . . . . 757 118 83 Ramming 103 | . 18 . . . . . . . . . . . . 85 Kinetic 12974 | 147 413 26 897 59 . 128 . . . . . . . 11304 Thermal 992 | . . . . . . . . . . . . . . 992 Explosive 9416 | . 696 . 283 . . . . . . . . . . 8437 Electromagnetic . | . . . . . . . . . . . . . . . Impact . | . . . . . . . . . . . . . . . Slashing 1711 | . . . . . . 398 362 . . . . 750 118 83 Piercing 15 | . . . . . . 8 . . . . . 7 . . Highest Corruption 13 | . . . . . . . 5 1 1 1 1 1 2 13 Average Corruption 6 | . . . . . . . 5 1 1 1 1 1 1 8 Corruption Purged . | . . . . . . . . . . . . . . . Corruption Blocked . | . . . . . . . . . . . . . . . Effects 130 | . . . . . . . 18 . . 2 1 1 . 108 Message Errors 31 | . . . . . . . 5 . . 2 . . . 24 Matter Fused 32 | . . . . . . . 4 . . . . . . 28 Heat Flow Errors 14 | . . . . . . . 1 . . . . . . 13 Energy Discharges 16 | . . . . . . . 3 . . . . . . 13 Parts Rejected 1 | . . . . . . . . . . . 1 . . . Data Loss (minor) 15 | . . . . . . . 3 . . . . 1 . 11 Data Loss (major) 7 | . . . . . . . 2 . . . . . . 5 Alerts 7 | . . . . . . . . . . . . . . 7 Misdirections 3 | . . . . . . . . . . . . . . 3 Weapon Failures 4 | . . . . . . . . . . . . . . 4 Overload Shots . | . . . . . . . . . . . . . . . Overflow Damage 986 | . 6 . 21 . . 31 20 . . . . 154 . 754 Projectiles 120 | . . . . . . . . . . . . . . 120 Explosions 606 | . 6 . 21 . . . . . . . . . . 579 Melee 260 | . . . . . . 31 20 . . . . 154 . 55 Knockbacks . | . . . . . . . . . . . . . . . Impact . | . . . . . . . . . . . . . . . Kinetic . | . . . . . . . . . . . . . . . Secondary . | . . . . . . . . . . . . . . . Self-Inflicted Damage 161 | . 80 . 46 . . . . . . . . . . 35 Shots 6 | . 2 . 2 . . . . . . . . . . 2 Rammed 4 | . 4 . . . . . . . . . . . . . Targets Rammed 7 | . 4 . . . . . . . . . . . . 3 Kicked 3 | . . . . . . . . . . . . . . 3 Crushed . | . . . . . . . . . . . . . . . Highest Temperature 387 | . 10 . . 43 . 387 199 2 2 2 136 343 86 205 Average Temperature 71 | . 7 . . 20 . 72 43 1 1 1 51 108 41 53 Received Heat Transfer 480 | . 24 9 45 27 . 51 51 . . . 9 . . 264 Effects 6 | . . . . . . 3 . . . . . 3 . . Shutdowns 2 | . . . . . . 2 . . . . . . . . Interference 2 | . . . . . . . . . . . . 2 . . Matter Decay 2 | . . . . . . 1 . . . . . 1 . . Siege Activations . | . . . . . . . . . . . . . . . Martial Activations . | . . . . . . . . . . . . . . . Shielding Activations . | . . . . . . . . . . . . . . . Robots Disrupted . | . . . . . . . . . . . . . . . Combat Hostiles . | . . . . . . . . . . . . . . . Robots Corrupted 1 | . . . . . . . . . . . . . . 1 Combat Hostiles . | . . . . . . . . . . . . . . . Parts Fried . | . . . . . . . . . . . . . . . Impact Corruptions 1 | . . . . . . . . . . . . . . 1 Robots Melted . | . . . . . . . . . . . . . . . Combat Hostiles . | . . . . . . . . . . . . . . . Parts Melted . | . . . . . . . . . . . . . . . Heat Transferred 481 | . . . . . . . . . . . . . . 481 Parts Sabotaged . | . . . . . . . . . . . . . . . Parts Stolen . | . . . . . . . . . . . . . . . Parts Stripped . | . . . . . . . . . . . . . . . Power Chain Reactions . | . . . . . . . . . . . . . . . Alert | -11 -10 -10 -10 -8 -8 -6 -5 -4 -4 -4 -3 -2 -2 -2 ------- Run | Yrd Mat Min Sub Rec Scr Fac Fac Fac Was Fac Res Res Qua Frg Maximum Alert Level 5 | . 1 . . . . . 1 . . . . 1 . 5 Low Security (%) 65 | 100 95 100 . 100 . 100 52 100 100 100 100 91 100 11 Level 1 9 | . 4 . . . . . 47 . . . . 8 . 8 Level 2 . | . . . . . . . . . . . . . . 1 Level 3 5 | . . . . . . . . . . . . . . 16 Level 4 9 | . . . . . . . . . . . . . . 31 Level 5 9 | . . . . . . . . . . . . . . 31 High Security . | . . . . . . . . . . . . . . . Max Security . | . . . . . . . . . . . . . . . Peak Influence 1883 | 15 227 58 . 60 . 85 287 123 30 35 30 293 188 1883 Initial 164 | . . 17 . 57 . . 29 113 30 14 5 . 164 83 Average 404 | 3 84 5 . 10 . 33 141 104 25 10 4 76 163 1150 Influence Increases 5621 | 25 499 68 182 173 . 304 602 14 . 103 90 712 84 2765 Destroy 0b10 Robot/C 1920 | . 240 40 160 40 . 60 60 . . . . 40 . 1280 Destroy 0b10 Robot/NC 210 | 25 35 . . 5 . 10 . . . . . 25 . 110 Destroy Leader 260 | . 56 10 . . . 12 10 . . . . 2 . 170 Allied During Kill 46 | . . 3 22 3 . . . . . . . 4 . 14 Successful Hack 201 | . 50 . . 3 . 15 44 8 . 8 18 14 18 23 Select Force Hacks 120 | . . . . 120 . . . . . . . . . . Disable Machine 345 | . 30 15 . . . 15 15 . . . . 60 30 180 Destroy Structure 599 | . 58 . . 2 . 12 68 6 . 20 12 147 21 253 Partial Spotted 330 | . . . . . . 60 15 . . 45 45 120 . 45 Lose Combat Pursuer 1590 | . 30 . . . . 120 390 . . 30 15 300 15 690 Influence Decreases 3738 | 25 453 114 63 292 . 243 431 159 67 113 100 419 229 1030 Entered New Map 504 | . . 29 . 62 . . 32 119 57 6 5 . 129 65 Time Decay 2769 | 25 443 85 43 210 . 213 369 40 10 87 78 381 70 715 Lost Part 370 | . 10 . . . . 30 30 . . 20 2 18 30 230 Lost Ally 80 | . . . 20 20 . . . . . . . 20 . 20 Purge Threat 15 | . . . . . . . . . . . 15 . . . Squads Dispatched 60 | . 5 . . . . 10 15 . . 6 4 12 2 6 Investigation 36 | . 4 . . . . 6 10 . . 6 3 3 . 4 Extermination 12 | . . . . . . 2 3 . . . 1 5 1 . Reinforcement 12 | . 1 . . . . 2 2 . . . . 4 1 2 Assault . | . . . . . . . . . . . . . . . Garrison . | . . . . . . . . . . . . . . . Intercept . | . . . . . . . . . . . . . . . Searches Triggered . | . . . . . . . . . . . . . . . Construction Impeded . | . . . . . . . . . . . . . . . Haulers Reinforced . | . . . . . . . . . . . . . . . Active Scanning Responses . | . . . . . . . . . . . . . . . Cargo Convoy Interrupts 1 | . . . . . . . . . . . . 1 . . Stealth | -11 -10 -10 -10 -8 -8 -6 -5 -4 -4 -4 -3 -2 -2 -2 --------- Run | Yrd Mat Min Sub Rec Scr Fac Fac Fac Was Fac Res Res Qua Frg Distress Signals 32 | . 2 . . . . 1 1 . . . . 3 . 25 Communications Jammed 15 | . . . . . . . . . . . . . . 15 Distress Signals 15 | . . . . . . . . . . . . . . 15 Times Spotted 446 | . 22 2 19 1 . 19 31 . 6 10 6 38 6 286 Peak Tracking Total 21 | . 4 2 6 1 . 4 10 . 6 6 4 11 5 21 Tactical Retreats 53 | . 1 . . . . 4 9 . . 1 1 12 1 24 Traps | -11 -10 -10 -10 -8 -8 -6 -5 -4 -4 -4 -3 -2 -2 -2 ------- Run | Yrd Mat Min Sub Rec Scr Fac Fac Fac Was Fac Res Res Qua Frg Traps Triggered 14 | . 6 . . . . 1 2 2 . 1 . 1 . 1 Indirectly . | . . . . . . . . . . . . . . . Trap Hack Attempts . | . . . . . . . . . . . . . . . Triggered . | . . . . . . . . . . . . . . . Disarmed . | . . . . . . . . . . . . . . . Reprogrammed . | . . . . . . . . . . . . . . . Reused . | . . . . . . . . . . . . . . . Traps Extracted . | . . . . . . . . . . . . . . . Installed . | . . . . . . . . . . . . . . . Triggered . | . . . . . . . . . . . . . . . Most Traps Carried 1 | . . . 1 1 1 . . . . . . . . . Machines | -11 -10 -10 -10 -8 -8 -6 -5 -4 -4 -4 -3 -2 -2 -2 ---------- Run | Yrd Mat Min Sub Rec Scr Fac Fac Fac Was Fac Res Res Qua Frg Machines Disabled 28 | . 2 1 4 . . 1 1 . . . . 4 2 13 Max in Single Turn 3 | . 1 . 3 . . 1 1 . . . . 1 1 3 Garrison Access 6 | . . . . . . . 1 1 . 2 . 2 . . Machines Repaired . | . . . . . . . . . . . . . . . Machines Dismantled . | . . . . . . . . . . . . . . . Machines Sabotaged . | . . . . . . . . . . . . . . . Overloaded Fab Kills . | . . . . . . . . . . . . . . . Hacking | -11 -10 -10 -10 -8 -8 -6 -5 -4 -4 -4 -3 -2 -2 -2 --------- Run | Yrd Mat Min Sub Rec Scr Fac Fac Fac Was Fac Res Res Qua Frg Machines Accessed 91 | . 7 . 2 10 2 10 17 2 . 10 7 12 4 8 Terminals 45 | . 7 . . 6 . 3 7 1 . 1 4 8 4 4 Fabricators 8 | . . . . . . 1 4 . . 1 1 . . 1 Repair Stations 1 | . . . . . . . . . . 1 . . . . Recycling Units 26 | . . . . 4 . 5 5 . . 5 2 2 . 3 Scanalyzers 1 | . . . . . . 1 . . . . . . . . Garrison Access 6 | . . . . . . . 1 1 . 2 . 2 . . Total Hacks 205 | . 18 . 5 18 35 17 39 3 . 17 12 19 5 17 Successful 139 | . 11 . 5 11 35 12 22 2 . 14 6 11 3 7 Failed 66 | . 7 . . 7 . 5 17 1 . 3 6 8 2 10 Catastrophic 8 | . 1 . . . . 1 2 1 . . 2 1 . . Database Lockouts . | . . . . . . . . . . . . . . . Manual 94 | . 16 . . 18 . 8 16 1 . 6 8 7 . 14 Terminals 96 | . 18 . . 13 . 6 20 2 . 2 8 14 5 8 Fabricators 18 | . . . . . . 1 10 . . 4 1 . . 2 Repair Stations 2 | . . . . . . . . . . 2 . . . . Recycling Units 37 | . . . . 5 . 6 8 . . 6 3 2 . 7 Scanalyzers 4 | . . . . . . 4 . . . . . . . . Garrison Access 8 | . . . . . . . 1 1 . 3 . 3 . . Terminal Hacks 68 | . 1 . 5 . 35 . 12 1 . 1 3 7 3 . Record 40 | . . . 4 . 35 . . . . . . . 1 . Part Schematic 5 | . . . . . . . 3 . . . 2 . . . Prototype ID Bank 1 | . . . . . . . 1 . . . . . . . Open Door 1 | . . . . . . . . . . . . 1 . . Branch Access Points 1 | . . . . . . . . . . . . 1 . . Emergency Access Points 1 | . . . . . . . . . . . . 1 . . Terminal Index 2 | . 1 . . . . . . 1 . . . . . . Alert Level 1 | . . . . . . . 1 . . . . . . . Unreport Threat 1 | . . . . . . . . . . . 1 . . . Locate Traps 5 | . . . . . . . 3 . . . . 2 . . Investigation Status 1 | . . . . . . . 1 . . . . . . . Recall Investigation 3 | . . . . . . . 1 . . . . 2 . . Recall Reinforcements 1 | . . . . . . . 1 . . . . . . . Hauler Manifests 2 | . . . . . . . 1 . . 1 . . . . Zone Layout 2 | . . . . . . . . . . . . . 2 . Proto ID Catalog 1 | . . . 1 . . . . . . . . . . . Fabricator Hacks 10 | . . . . . . 1 5 . . 2 1 . . 1 Network Status 2 | . . . . . . 1 1 . . . . . . . Load Schematic 4 | . . . . . . . 2 . . 1 1 . . . Build 4 | . . . . . . . 2 . . 1 . . . 1 Repair Station Hacks 2 | . . . . . . . . . . 2 . . . . Scan Component 1 | . . . . . . . . . . 1 . . . . Repair 1 | . . . . . . . . . . 1 . . . . Recycling Unit Hacks 1 | . . . . . . . . . . 1 . . . . Report Inventory 1 | . . . . . . . . . . 1 . . . . Scanalyzer 4 | . . . . . . 4 . . . . . . . . Insert Component 1 | . . . . . . 1 . . . . . . . . Analyze 3 | . . . . . . 3 . . . . . . . . Garrison Access Hacks 6 | . . . . . . . 1 1 . 2 . 2 . . Seal Access 6 | . . . . . . . 1 1 . 2 . 2 . . Unauthorized Hacks 47 | . 10 . . 10 . 7 4 . . 6 2 2 . 6 Terminals 23 | . 10 . . 6 . 2 . . . 1 . . . 4 Botnet 11 | . 4 . . 1 . 2 . . . 1 . . . 3 Operators 2 | . 1 . . . . . . . . . . . . 1 Skim 10 | . 5 . . 5 . . . . . . . . . . Fabricators . | . . . . . . . . . . . . . . . Repair Stations . | . . . . . . . . . . . . . . . Recycling Units 24 | . . . . 4 . 5 4 . . 5 2 2 . 2 Tunnel 4 | . . . . 4 . . . . . . . . . . Fedlink 20 | . . . . . . 5 4 . . 5 2 2 . 2 Scanalyzers . | . . . . . . . . . . . . . . . Garrison Access . | . . . . . . . . . . . . . . . Data Cores Recovered 1 | . . . . . . . . . . . . . . 1 Used . | . . . . . . . . . . . . . . . Hacking Detections 49 | . 4 . . 5 . 4 12 1 . 2 6 6 3 6 Full Trace Events 13 | . 2 . . . . 1 6 . . 1 1 1 . 1 Feedback Events . | . . . . . . . . . . . . . . . Feedback Blocked . | . . . . . . . . . . . . . . . Robot Schematics Acquired . | . . . . . . . . . . . . . . . Robots Built . | . . . . . . . . . . . . . . . Authchips . | . . . . . . . . . . . . . . . Time . | . . . . . . . . . . . . . . . Total Robot Build Rating . | . . . . . . . . . . . . . . . Part Schematics Acquired 6 | . . . . . . 1 3 . . . 2 . . . Parts Built 6 | . . . . . . . 3 . . 1 . . . 2 Authchips . | . . . . . . . . . . . . . . . Time 262 | . . . . . . . 140 . . 76 . . . 46 Total Part Build Rating 44 | . . . . . . . 21 . . 5 . . . 18 Parts Repaired 1 | . . . . . . . . . . 1 . . . . Time 62 | . . . . . . . . . . 62 . . . . Parts Recycled . | . . . . . . . . . . . . . . . Recycled Matter . | . . . . . . . . . . . . . . . Retrieved Matter . | . . . . . . . . . . . . . . . Retrieved Components . | . . . . . . . . . . . . . . . Parts Scanalyzed 1 | . . . . . . 1 . . . . . . . . Part Schematics Acquired 1 | . . . . . . 1 . . . . . . . . Parts Damaged . | . . . . . . . . . . . . . . . Bothacking | -11 -10 -10 -10 -8 -8 -6 -5 -4 -4 -4 -3 -2 -2 -2 ------------ Run | Yrd Mat Min Sub Rec Scr Fac Fac Fac Was Fac Res Res Qua Frg Used RIF Installer . | . . . . . . . . . . . . . . . Robots Hacked . | . . . . . . . . . . . . . . . Non-combat . | . . . . . . . . . . . . . . . Combat . | . . . . . . . . . . . . . . . Robot Hacks Applied . | . . . . . . . . . . . . . . . Relay Couplers Released . | . . . . . . . . . . . . . . . Fabnet Peak Effective % . | . . . . . . . . . . . . . . . Robots Rewired . | . . . . . . . . . . . . . . . Allies Hacked . | . . . . . . . . . . . . . . . Hacks Repelled . | . . . . . . . . . . . . . . . Allies | -11 -10 -10 -10 -8 -8 -6 -5 -4 -4 -4 -3 -2 -2 -2 -------- Run | Yrd Mat Min Sub Rec Scr Fac Fac Fac Was Fac Res Res Qua Frg Total Allies 10 | . . 4 4 . . . . . . . . 1 . 1 Largest Group 4 | . . 4 4 3 1 1 . . . . . 1 . 1 Highest-Rated Group 92 | . . 71 76 57 19 19 . . . . . 30 . 92 Highest-Rated Ally 92 | . . 31 19 19 19 19 . . . . . 30 . 92 Total Orders . | . . . . . . . . . . . . . . . Ally Attacks 52 | . . 6 20 6 . . . . . . . 4 . 16 Total Damage 1256 | . . 104 212 102 . . . . . . . . . 838 Kills 9 | . . 2 2 2 . . . . . . . . . 3 Allies Corrupted . | . . . . . . . . . . . . . . . Allies Melted . | . . . . . . . . . . . . . . . Intel | -11 -10 -10 -10 -8 -8 -6 -5 -4 -4 -4 -3 -2 -2 -2 ------- Run | Yrd Mat Min Sub Rec Scr Fac Fac Fac Was Fac Res Res Qua Frg Active Infowar (turns) 7125 | 15 1389 864 338 . 17 541 1187 94 35 278 366 948 158 895 Optics 75 | . . . . . . . . 18 35 22 . . . . Sensors 3940 | . . . . . . 3 1187 94 35 278 364 926 158 895 Structural 3745 | . . . . . 17 486 1182 94 35 278 366 948 158 181 Seismic 3122 | 15 1389 864 338 . . 516 . . . . . . . . Jamming 139 | . . . . . . . 26 . . . . 1 9 103 ECM 98 | . . . . . . . 2 . . . . 96 . . Robot Analysis Total . | . . . . . . . . . . . . . . . Derelict Logs Recovered 8 | . . 2 1 . 5 . . . . . . . . . Drone Launches . | . . . . . . . . . . . . . . . Drone Recoveries . | . . . . . . . . . . . . . . . Exploration | -11 -10 -10 -10 -8 -8 -6 -5 -4 -4 -4 -3 -2 -2 -2 ------------- Run | Yrd Mat Min Sub Rec Scr Fac Fac Fac Was Fac Res Res Qua Frg Turns Passed 17397 | 116 1389 864 3388 1088 3536 647 1193 94 35 278 366 948 158 3297 Spaces Moved 16726 | 50 673 348 1940 391 2061 1185 1908 242 108 707 941 2209 524 3439 Core 400 | 15 1 . . . 380 . . . . . . . . 4 Treads 1075 | 35 672 348 20 . . . . . . . . . . . Legs 1797 | . . . 196 . . . . . . . . . . 1601 Wheels 3804 | . . . 1724 391 1681 . . . . . . . . 8 Hover . | . . . . . . . . . . . . . . . Flight 9650 | . . . . . . 1185 1908 242 108 707 941 2209 524 1826 Fastest Speed 6 | 50 150 160 120 215 50 20 23 28 28 28 24 7 6 6 Average Speed 79 | 127 159 160 158 215 169 26 25 28 28 28 26 20 19 65 Slowest Speed 215 | 160 160 160 215 215 215 51 31 28 28 28 28 25 22 170 Overloaded Moves 115 | . . . . . . . . . . . . 39 20 56 Propulsion Burnouts . | . . . . . . . . . . . . . . . Robots Hopped 64 | . . . . . . 7 8 . . 6 6 15 3 19 Potential Cave-ins 21 | . . . . . . . . . . . . 2 . 19 Cave-ins Triggered . | . . . . . . . . . . . . . . . Exploration Rate (%) 54 | 4 96 80 90 87 85 37 52 4 81 21 24 57 49 50 Regions Visited 14 Branch Regions 6 Pre-discovered Areas 11 | . 1 1 . 5 3 1 . . . . . . . . Known Exits Taken 7 | . . . . . 1 1 1 . . 1 1 1 1 . Unknown Exits Taken 5 | 1 1 1 1 1 . . . . . . . . . . Scrap Searched 16 | . . . 9 . 7 . . . . . . . . . Spaces Dug 159 | . . . . . . 12 34 3 . 10 6 70 7 17 Terrain Destroyed 401 | . 58 . 36 1 . 12 34 3 . 10 6 91 7 143 Melee 93 | . . . . . . 12 34 3 . 10 6 14 7 7 Projectile 45 | . . . . 1 . . . . . . . . . 44 AOE 263 | . 58 . 36 . . . . . . . . 77 . 92 Terrain Rammed . | . . . . . . . . . . . . . . . Walls Destroyed . | . . . . . . . . . . . . . . . Machines Disabled . | . . . . . . . . . . . . . . . Actions | -11 -10 -10 -10 -8 -8 -6 -5 -4 -4 -4 -3 -2 -2 -2 --------- Run | Yrd Mat Min Sub Rec Scr Fac Fac Fac Was Fac Res Res Qua Frg Total 20164 | 84 904 647 2152 634 2108 1454 2552 263 112 763 1045 2649 561 4236 Wait 2434 | 6 157 295 88 238 . 176 533 16 . 49 81 366 10 419 Move 16595 | 49 672 347 1939 390 2060 1170 1892 242 107 694 928 2178 517 3410 Hop 54 | . . . . . . 7 7 . . 6 6 15 3 10 Pick Up 156 | 12 10 1 27 1 28 10 11 . 1 1 7 7 4 36 Fast Attach 76 | 1 4 . 2 . 3 14 2 1 2 1 5 10 2 29 Attach 98 | 6 2 . 9 . 4 10 11 1 . . 4 8 5 38 Detach 24 | . . . . . 2 . 4 . . . . 2 1 15 Swap 47 | . 11 . 12 1 1 5 5 . . . 1 2 1 8 Drop 138 | . 2 . 15 1 10 21 9 . 2 1 6 12 6 53 Fire 326 | 10 42 4 59 3 . 9 . . . . . 3 . 196 Melee 152 | . . . . . . 32 43 3 . 11 7 35 12 9 Ram . | . . . . . . . . . . . . . . . Kick 3 | . . . . . . . . . . . . . . 3 Crush 4 | . 4 . . . . . . . . . . . . . Escape Stasis 56 | . . . . . . . 35 . . . . 11 . 10 Rewire 1 | . . . 1 . . . . . . . . . . . Trap . | . . . . . . . . . . . . . . . Miscellaneous . | . . . . . . . . . . . . . . . Route ------- -11/Scrapyard -10/Materials (discovered 5 exits: *Mat x3 / [*Min] / *Sub) -10/Mines (discovered 2 exits: *Mat / *Sub) -10/Subcaves (discovered 3 exits: [*Mat x2] / *Rec) -8/Recycling (discovered 2 exits: *Fac / *Scr) -8/Scraptown (discovered 2 exits: *Fac x2) -6/Factory (discovered 8 exits: *Fac x4 / *Low x2 / Ext x2) -5/Factory (discovered 4 exits: *Fac x2 / *Upp x2) -4/Factory (discovered 4 exits: Res x3 / Upp) -4/Waste -4/Factory -3/Research -2/Research (discovered 4 exits: [*Acc x2] / *Qua x2) -2/Quarantine (discovered 2 exits: [*Sec] / *Frg) -2/Protoforge History --------- Turn | Location | Event 6 | -11/Scrapyard | Discovered new exit (range 15) 117 | -11/Scrapyard | Entered Materials 322 | -10/Materials | Build established: Mutant 538 | -10/Materials | Discovered new exit (range 13) 677 | -10/Materials | Discovered new exit (range 13) 714 | -10/Materials | Discovered new exit (range 6) 795 | -10/Materials | Discovered new exit (range 10) 1034 | -10/Materials | Discovered new exit (range 14) 1353 | -10/Materials | Identified exit to Materials 1410 | -10/Materials | Learned 4 Materials zone layouts 1411 | -10/Materials | Learned 2 Mines zone layouts 1414 | -10/Materials | Learned 2 Storage zone layouts 1424 | -10/Materials | Learned location of 1 exit from Storage 1506 | -10/Materials | Entered Mines 1514 | -10/Mines | Met a Derelict bent on vengeance 1530 | -10/Mines | Received a Mining Laser from a helpful Derelict 1624 | -10/Mines | Learned location of Zion (-7) 1626 | -10/Mines | Assisted by bots powering up and referring to "LRC-V3" 2044 | -10/Mines | Received a Rocket Launcher from a helpful Derelict 2234 | -10/Mines | Excavation squad dispatched 2234 | -10/Mines | A large section of the Mines collapsed 2362 | -10/Mines | Discovered new exit (range 6) 2370 | -10/Mines | Entered Subcaves 2416 | -10/Subcaves | Core integrity fell below 50% 2440 | -10/Subcaves | Lost 3 parts (2n1w) 2642 | -10/Subcaves | Core integrity fell below 20% 2766 | -10/Subcaves | Discovered new exit (range 13) 2866 | -10/Subcaves | Discovered new exit (range 8) 2910 | -10/Subcaves | Lost 3 parts (1p1n1u) 3003 | -10/Subcaves | Visited triangular shrine 3010 | -10/Subcaves | Found Prototype Device 3011 | -10/Subcaves | Identified V3-11A's Pendant 3016 | -10/Subcaves | Befriended Subdweller 4106 | -10/Subcaves | Befriended Subdweller 4111 | -10/Subcaves | Befriended Subdweller 4264 | -10/Subcaves | Learned Materials terminal intel 4279 | -10/Subcaves | Disturbed a concealed Subdweller 4281 | -10/Subcaves | Befriended Subdweller 4451 | -10/Subcaves | Visited 4L-MR0's lab 4481 | -10/Subcaves | Found Tower Shield 4857 | -10/Subcaves | Visited Clippyterm 4863 | -10/Subcaves | Learned Factory emergency access door positions 5715 | -10/Subcaves | Discovered new exit (range 14) 5758 | -10/Subcaves | Entered Recycling 5758 | -8/Recycling | Accompanied by 3 allies 6289 | -8/Recycling | Discovered new exit (range 16) 6340 | -8/Recycling | Scanned before Scraplab entrance 6575 | -8/Recycling | Learned location of 1 exit from Storage 6622 | -8/Recycling | Learned location of 1 exit from Storage 6705 | -8/Recycling | Learned location of 1 exit from Lower Caves 6744 | -8/Recycling | Learned Storage trap positions 6780 | -8/Recycling | Learned location of 3 exits from Factory 6827 | -8/Recycling | Entered Scraplab 6844 | -8/Recycling | Discovered new exit (range 2) 6846 | -8/Recycling | Entered Scraptown 6846 | -8/Scraptown | Accompanied by 1 ally 6847 | -8/Scraptown | Identified exit to Factory 7044 | -8/Scraptown | Delivered V3-11A's Pendant to T0-NE2 in exchange for information 7124 | -8/Scraptown | Visited Fellowship of the Rings 7154 | -8/Scraptown | Visited Awakened 7253 | -8/Scraptown | Visited Comm Corps 7304 | -8/Scraptown | Visited Spacefarers 7356 | -8/Scraptown | Visited Cyclists 7382 | -8/Scraptown | Visited TADAMA 7412 | -8/Scraptown | Visited UFD Registry 7412 | -8/Scraptown | Registered with UFD as "Gravbank" 7509 | -8/Scraptown | Scanned Subdweller tech in exchange for log data 7515 | -8/Scraptown | Learned 12 Factory zone layouts 7517 | -8/Scraptown | Learned Factory terminal intel 7519 | -8/Scraptown | Learned Factory emergency access door positions 7522 | -8/Scraptown | Learned Factory stockpile data 7605 | -8/Scraptown | Guru changed UFD alias to "Metalglider" 8197 | -8/Scraptown | Visited Botcube Research 8227 | -8/Scraptown | Visited Junk Cannon Lab 8278 | -8/Scraptown | Visited Junk Repository 8341 | -8/Scraptown | Visited DA-N13 Charitable Foundation 8360 | -8/Scraptown | Found DCF Scrap (28 items) 8412 | -8/Scraptown | Visited Observation Area 8442 | -8/Scraptown | Visited Supply Room 8476 | -8/Scraptown | Visited Junk Repository 8541 | -8/Scraptown | Visited Cartography Club 8601 | -8/Scraptown | Delivered Scrap Shield to a Scientist 8678 | -8/Scraptown | Learned location of Mines (-8) 8678 | -8/Scraptown | Learned location of Upper Caves (-4) 8678 | -8/Scraptown | Learned 12 Materials zone layouts 8678 | -8/Scraptown | Learned 12 Factory zone layouts 8678 | -8/Scraptown | Learned 12 Research zone layouts 8678 | -8/Scraptown | Learned 4 Mines zone layouts 8678 | -8/Scraptown | Learned 8 Lower Caves zone layouts 8678 | -8/Scraptown | Learned 16 Lower Caves zone layouts 8678 | -8/Scraptown | Learned 8 Upper Caves zone layouts 8678 | -8/Scraptown | Learned 8 Proximity Caves zone layouts 8678 | -8/Scraptown | Learned 12 Proximity Caves zone layouts 8678 | -8/Scraptown | Learned 16 Proximity Caves zone layouts 8678 | -8/Scraptown | Learned Factory emergency access door positions 8678 | -8/Scraptown | Learned location of 1 exit from Factory 8678 | -8/Scraptown | Learned location of 2 exits from Factory 8678 | -8/Scraptown | Learned location of 2 exits from Upper Caves 8690 | -8/Scraptown | Found Deep Structural Scanner 8719 | -8/Scraptown | Found Lrg. Botcube 8731 | -8/Scraptown | Found Prototype Special Weapon 8994 | -8/Scraptown | Identified Junk Cannon 10245 | -8/Scraptown | Met Optimus 10245 | -8/Scraptown | Accepted into 0bPrime 10382 | -8/Scraptown | Entered Factory 10382 | -6/Factory | Accompanied by 1 ally 10382 | -6/Factory | Evolved 8 slots: Power x1, Propulsion x5, Utility x2 10383 | -6/Factory | Identified exit to Lower Caves 10383 | -6/Factory | Identified exit to Extension 10384 | -6/Factory | Identified exit to Factory 10388 | -6/Factory | Loaded intel: 28 terminal locations 10542 | -6/Factory | Loaded intel: 8 recycling unit locations 10560 | -6/Factory | Lost 4 parts (1p3n) 10588 | -6/Factory | Learned location of Protoforge (-2) 10624 | -6/Factory | Found Prototype Processor 10624 | -6/Factory | Identified Exp. Targeting Computer 10822 | -6/Factory | Build established: Sprinter 11029 | -6/Factory | Entered another Factory area 11029 | -5/Factory | Evolved 2 slots: Utility x2 11030 | -5/Factory | Identified exit to Upper Caves 11031 | -5/Factory | Identified exit to Factory 11287 | -5/Factory | Loaded intel: 8 recycling unit locations 11436 | -5/Factory | Build established: Infiltrator-Ninja 11748 | -5/Factory | Fabricated Nova Cannon (x2) 11952 | -5/Factory | Build established: Hacker-Scout 12148 | -5/Factory | Fabricated Cld. Cesium-ion Thruster? 12173 | -5/Factory | Discovered exit to Factory (range 6) 12222 | -5/Factory | Entered another Factory area 12222 | -4/Factory | Evolved 2 slots: Utility x2 12223 | -4/Factory | Identified exit to Research 12223 | -4/Factory | Identified exit to Upper Caves 12316 | -4/Factory | Sucked down chute 12316 | -4/Factory | Entered Waste 12333 | -4/Waste | Spotted C-40 Crusher 12333 | -4/Waste | Spotted C-40 Crusher 12333 | -4/Waste | Spotted C-40 Crusher 12336 | -4/Waste | Spotted C-40 Crusher 12338 | -4/Waste | Spotted C-40 Crusher 12340 | -4/Waste | Discovered new exit (range 22) 12341 | -4/Waste | Spotted C-40 Crusher 12347 | -4/Waste | Found Prototype Device 12347 | -4/Waste | Identified Exp. Thermal Defense Suite 12351 | -4/Waste | Identified exit to Factory 12351 | -4/Waste | Entered Factory 12390 | -4/Factory | Loaded intel: 8 recycling unit locations 12492 | -4/Factory | Discovered exit to Research (range 17) 12582 | -4/Factory | Fabricated Cld. Cesium-ion Thruster? 12617 | -4/Factory | Repaired Impulse Thruster? 12629 | -4/Factory | Entered Research 12629 | -3/Research | Evolved 2 slots: Propulsion x1, Utility x1 12638 | -3/Research | Found Fusion Bomb Launcher 12642 | -3/Research | Loaded intel: 5 recycling unit locations 12656 | -3/Research | Discovered new exit (range 11) 12876 | -3/Research | Found Prototype Device 12876 | -3/Research | Identified Exp. Focal Shield 12891 | -3/Research | Spotted B-86 Titan 12982 | -3/Research | Identified exit to Research 12995 | -3/Research | Entered another Research area 12995 | -2/Research | Evolved 2 slots: Utility x1, Weapon x1 13115 | -2/Research | Spotted B-90 Cyclops 13121 | -2/Research | Lost 4 parts (1p1n2u) 13167 | -2/Research | Loaded intel: 5 recycling unit locations 13229 | -2/Research | Spotted B-90 Cyclops 13322 | -2/Research | Build established: Hacker-Ninja 13373 | -2/Research | Identified exit to Quarantine 13389 | -2/Research | Discovered new exit (range 15) 13777 | -2/Research | Found Prototype Device 13777 | -2/Research | Identified Thermal Barrier 13790 | -2/Research | Discovered new exit (range 14) 13861 | -2/Research | Cargo convoy interrupted 13943 | -2/Research | Entered Quarantine 13953 | -2/Quarantine | Found Prototype Processor 13954 | -2/Quarantine | Identified Exp. Core Analyzer 14004 | -2/Quarantine | Found Sigix Corpse 14015 | -2/Quarantine | Found Prototype Device 14015 | -2/Quarantine | Identified Adv. Kinecellerator 14066 | -2/Quarantine | Scanned by Researcher 14071 | -2/Quarantine | Found Alien Energy Cannon 14080 | -2/Quarantine | Spotted Fortress 14091 | -2/Quarantine | Discovered new exit (range 6) 14091 | -2/Quarantine | Discovered new exit (range 7) 14092 | -2/Quarantine | Identified exit to Protoforge 14093 | -2/Quarantine | Identified Core Cannon 14101 | -2/Quarantine | Entered Protoforge 14103 | -2/Protoforge | Lost 3 parts (1n1u1w) 14146 | -2/Protoforge | Spotted Hotshot 14146 | -2/Protoforge | Spotted Hotshot 14176 | -2/Protoforge | Superfortress began startup sequence 14189 | -2/Protoforge | Spotted Hotshot 14189 | -2/Protoforge | Spotted Hotshot 14192 | -2/Protoforge | Spotted Hotshot 14203 | -2/Protoforge | Spotted AP7-3 14204 | -2/Protoforge | Spotted AP7-3 14213 | -2/Protoforge | Spotted EXE-6 14213 | -2/Protoforge | Spotted EXE-6 14213 | -2/Protoforge | Spotted Decapitator 14213 | -2/Protoforge | Spotted Decapitator 14224 | -2/Protoforge | UFD initiated attack on Protoforge 14224 | -2/Protoforge | Loaded intel: 3 recycling unit locations 14245 | -2/Protoforge | Spotted EXE-6 14249 | -2/Protoforge | Spotted EXE-6 14260 | -2/Protoforge | Optimus greeted in Protoforge 14279 | -2/Protoforge | Spotted Overlord 14315 | -2/Protoforge | Lost 9 allies 14363 | -2/Protoforge | Fabricated Enh. Quantum Rifle (x2) 14427 | -2/Protoforge | Lost 5 allies 14498 | -2/Protoforge | Attached Tower Shield, gained temporary slots: Power, Propulsion x2 14583 | -2/Protoforge | Found Scrap Suit 14597 | -2/Protoforge | Lost 6 allies 14661 | -2/Protoforge | Spotted Executioner 14664 | -2/Protoforge | Spotted Executioner 14679 | -2/Protoforge | Found Prototype Processor 14680 | -2/Protoforge | Identified Exp. Melee Analysis Suite 14691 | -2/Protoforge | Found Exp. Core Analyzer 14692 | -2/Protoforge | Spotted Immortal 14701 | -2/Protoforge | Spotted Striker 14702 | -2/Protoforge | Spotted Striker 14724 | -2/Protoforge | Destroyed Striker 14735 | -2/Protoforge | Spotted Striker 14736 | -2/Protoforge | Spotted Executioner 14737 | -2/Protoforge | Spotted Executioner 14738 | -2/Protoforge | Spotted Striker 14744 | -2/Protoforge | Spotted Executioner 14745 | -2/Protoforge | Destroyed Executioner 14745 | -2/Protoforge | Destroyed Striker 14745 | -2/Protoforge | Spotted Executioner 14747 | -2/Protoforge | Spotted Executioner 14763 | -2/Protoforge | Spotted Executioner 14763 | -2/Protoforge | Destroyed Executioner 14789 | -2/Protoforge | Destroyed 14 combat bots 14799 | -2/Protoforge | Build established: Scavenger-Tank 14808 | -2/Protoforge | Destroyed Executioner 14832 | -2/Protoforge | Spotted Executioner 14835 | -2/Protoforge | Spotted Executioner 14856 | -2/Protoforge | Spotted Striker 14900 | -2/Protoforge | Lost 27 allies 14924 | -2/Protoforge | Spotted Striker 14927 | -2/Protoforge | Spotted Executioner 14929 | -2/Protoforge | P-80 Master assimilated allied 02F10-K 14929 | -2/Protoforge | Spotted 02F10-K 14952 | -2/Protoforge | Spotted Striker 14953 | -2/Protoforge | P-80 Master assimilated allied 02F96-D 14971 | -2/Protoforge | Spotted Executioner 14977 | -2/Protoforge | Destroyed Executioner 15000 | -2/Protoforge | Spotted Hotshot 15012 | -2/Protoforge | Spotted Striker 15017 | -2/Protoforge | Spotted Executioner 15040 | -2/Protoforge | Destroyed Hotshot 15040 | -2/Protoforge | Spotted Striker 15060 | -2/Protoforge | Core integrity fell below 50% 15061 | -2/Protoforge | Destroyed 8 combat bots 15103 | -2/Protoforge | Lost 16 allies 15269 | -2/Protoforge | Build established: Scavenger-Scrapper 15300 | -2/Protoforge | Spotted Striker 15404 | -2/Protoforge | Forge Plexus network access discovered 15418 | -2/Protoforge | Spotted Decapitator 15421 | -2/Protoforge | Spotted Decapitator 15421 | -2/Protoforge | Spotted Decapitator 15423 | -2/Protoforge | Destroyed Decapitator 15424 | -2/Protoforge | Destroyed Decapitator 15429 | -2/Protoforge | Spotted Decapitator 15431 | -2/Protoforge | Destroyed Decapitator 15438 | -2/Protoforge | Spotted Striker 15456 | -2/Protoforge | Spotted Striker 15488 | -2/Protoforge | Lost 3 allies 15504 | -2/Protoforge | Found Unknown Device 15505 | -2/Protoforge | Identified 0bPrime Scrap Suit 15552 | -2/Protoforge | Destroyed EXE-6 15568 | -2/Protoforge | Lrg. Botcube activated 15570 | -2/Protoforge | Spotted Executioner 15580 | -2/Protoforge | Lost 7 allies 15582 | -2/Protoforge | Lrg. Botcube completed mutation into treaded form (unarmed). 15582 | -2/Protoforge | Spotted Striker 15589 | -2/Protoforge | Spotted Striker 15602 | -2/Protoforge | Spotted Executioner 15606 | -2/Protoforge | Spotted Executioner 15649 | -2/Protoforge | Lost 10 allies 15806 | -2/Protoforge | Spotted Striker 15818 | -2/Protoforge | Spotted Executioner 15822 | -2/Protoforge | Spotted Executioner 15833 | -2/Protoforge | Spotted Executioner 15856 | -2/Protoforge | Spotted Striker 15865 | -2/Protoforge | Destroyed Executioner 15869 | -2/Protoforge | Spotted Striker 15874 | -2/Protoforge | Destroyed Executioner 15901 | -2/Protoforge | Lost 13 allies 16043 | -2/Protoforge | Spotted Striker 16053 | -2/Protoforge | Spotted Executioner 16123 | -2/Protoforge | Spotted Executioner 16126 | -2/Protoforge | Lost 5 parts (1n2u2w) 16137 | -2/Protoforge | Spotted Executioner 16167 | -2/Protoforge | Lost 11 allies 16175 | -2/Protoforge | Spotted Striker 16176 | -2/Protoforge | Spotted Striker 16178 | -2/Protoforge | Spotted Striker 16184 | -2/Protoforge | Spotted Striker 16194 | -2/Protoforge | P-80 Master assimilated allied 02FEC-D 16195 | -2/Protoforge | Destroyed 02F27-K 16195 | -2/Protoforge | Spotted Hotshot 16202 | -2/Protoforge | Spotted Hotshot 16205 | -2/Protoforge | System corruption reached 10% 16207 | -2/Protoforge | Spotted Hotshot 16207 | -2/Protoforge | Spotted Striker 16208 | -2/Protoforge | Spotted Striker 16208 | -2/Protoforge | Destroyed Hotshot 16234 | -2/Protoforge | Destroyed Striker 16249 | -2/Protoforge | Destroyed Hotshot 16251 | -2/Protoforge | Spotted Hotshot 16255 | -2/Protoforge | Lost 13 allies 16274 | -2/Protoforge | Spotted Striker 16277 | -2/Protoforge | Destroyed 10 combat bots 16290 | -2/Protoforge | Destroyed Striker 16335 | -2/Protoforge | Lost 8 allies 16586 | -2/Protoforge | Spotted Executioner 16587 | -2/Protoforge | Spotted Executioner 16590 | -2/Protoforge | Core integrity fell below 20% 16647 | -2/Protoforge | Spotted Striker 16649 | -2/Protoforge | Spotted Striker 16649 | -2/Protoforge | Spotted Executioner 16649 | -2/Protoforge | Spotted Striker 16683 | -2/Protoforge | Lost 9 allies 16725 | -2/Protoforge | Spotted Striker 16736 | -2/Protoforge | Spotted Striker 16762 | -2/Protoforge | Spotted Striker 16763 | -2/Protoforge | Spotted Striker 16796 | -2/Protoforge | Spotted Immortal 16825 | -2/Protoforge | Spotted Immortal 16862 | -2/Protoforge | Lost 7 allies 16948 | -2/Protoforge | Found UFD Drillbomb 16952 | -2/Protoforge | Found UFD Drillbomb 17007 | -2/Protoforge | Spotted Striker 17007 | -2/Protoforge | Spotted Striker 17007 | -2/Protoforge | Spotted Executioner 17008 | -2/Protoforge | Spotted Striker 17091 | -2/Protoforge | Spotted Striker 17132 | -2/Protoforge | Lost 4 allies 17178 | -2/Protoforge | Spotted Executioner 17217 | -2/Protoforge | Spotted Hotshot 17230 | -2/Protoforge | Build established: Scavenger-Sprinter 17288 | -2/Protoforge | Spotted Hotshot 17288 | -2/Protoforge | Spotted Hotshot 17288 | -2/Protoforge | Spotted Hotshot 17301 | -2/Protoforge | Spotted Hotshot 17302 | -2/Protoforge | Spotted Hotshot 17339 | -2/Protoforge | Lost 8 allies 17350 | -2/Protoforge | Spotted Hotshot 17357 | -2/Protoforge | Spotted Striker 17396 | -2/Protoforge | Released all parts (7) 17398 | -2/Protoforge | Destroyed by S-43 Plague with Heavy Machine Gun Last Messages --------------- 17375_ Field strength at 95. 17376_ Field strength at 90. 17377_ Field strength at 85. 17378_ Field strength at 80. 17379_ Field strength at 75. 17380_ Field strength at 70. 17381_ Field strength at 65. 17382_ Field strength at 60. 17383_ Field strength at 55. 17383_ Penetrated by Slug. 17383_ Lgt. Quantum Reactor destroyed. 17384_ Field strength at 29. 17385_ Field strength at 11. 17386_ Stasis field depleted. 17396_ Released Exp. Surge Thruster. 17396_ Released Impulse Thruster Array. 17396_ Released Lgt. Humpback. 17396_ Released Ionic Axe. 17397_ Penetrated by Slug. 17397_ Slug penetrates Wall. Map ----- +----------------------------------------------------+ | ????? "" ##### | | ####################### ##### | | ############# # ##### ##### | | ##???? ### "" # ##############+####### | | ##????""" ### """ # # # #### | | ##??????? ### """ " # ^^^^# """ # """" #### | | ##??????? ### """ " # # """ # """" #### | | ##??????? # + " " " # # """ # """"" #### | | ##??????? ### " # + " " " #### | | ## ### # # """ # """ #### | | ## #######+##### # """ # " #### | | ## #### ## # """ # #### | | ######+####### # # #### | | # " "##################### | | # ! * "T ###################### | | # / ###################### | | # ##+####### ###################### | | # ## ## #####/######????????????????? | | # #### ### s ##????????????????? | | T" # #### ### / ##????????????????? | | " # ? #### ### ==& ##????????????????? | | # #### ### ==s ##????????????????? | | # ? #### ######!#######????????????????? | | ## ### ### #####& ###????????????????? | | ## ### ### ##?????????????????? | | + ### Y @ Y ##?????????????????? | | ###### ### ##?????????????????? | | # # ### ##### #####??????????????? | | + T^# ###############+#######??????????????? | | # # ##########???????????##??????????????? | | #?? ###########????##???????????##??????????????? | | #?? "###########????##???????????##??????????????? | | #?? "#######????????##???????????##??????????????? | | #?? "#######????????##???????????##??????????????? | | #????##?????????????##???????????##??????????????? | | #######?????????????##???????????##??????????????? | | #######?????????????###############??????????????? | | | | | | | | | | | | | | | | | | | | | | | | | | | +----------------------------------------------------+ Best States ------------- Heat Dissipation 75 Energy Generation 61 Energy Capacity 440 Matter Stores 300 Matter Capacity 300 Sight Range 22 Robot Scan Range 16 Terrain Scan Density 10 ECM Strength 2 Jamming Range 14 Armor Coverage 2225 Resistance: TH 20 Resistance: EM 20 Weapon Shielding 90 Evasion (%) 80 Core Analysis 8 Recoil Reduction 2 Salvage Targeting 3 Offensive Hacking 28 Item Schematics ----------------- Mak. Transmission Jammer | -6/Factory | Scanalyzed Quantum Rifle | -5/Factory | Hacked Cld. Cesium-ion Thruster | -5/Factory | Hacked Adv. Hacking Suite | -5/Factory | Hacked Lgt. Particle Reactor | -3/Research | Hacked Q-thruster | -3/Research | Hacked Robot Schematics ------------------ None Fabricated ------------ Nova Cannon | x2 | -5/Factory | Preloaded Cld. Cesium-ion Thruster | x1 | -5/Factory Cld. Cesium-ion Thruster | x1 | -4/Factory Enh. Quantum Rifle | x2 | -2/Protoforge | Preloaded Repaired ---------- Impulse Thruster | 7% | -4/Factory Alien Tech Used ----------------- Core Cannon Achievements -------------- Nope Speed Demon Ultimate Loadout Whoosh! Challenges ------------ None Game ------ Seed CentriumArchitectCasing Manual? 0 Play Time 04:02:07 Cumulative 158.5 hours Start 2025.08.29 @ 13:52:44 End 2025.08.29 @ 23:52:22 Sessions 3 Manual Loads 0 Difficulty Rogue Special Mode None Game No. 220 Rogue 220 Adventurer 0 Explorer 0 Win Type - Total 1 Types 1/0/0/0/0/0/0/0/0/0 Lore% 71 Gallery% 66 Achievement% 57 Wizard Run 0 Options --------- Layout 0 ASCII 0 Keyboard 0 Movement Mouse Keybinds 0 Fullscreen 1 Font 16/SmallcapsGlow Map View 75x55 Zoom Use 0% Tactical HUD 1 Map Filters NONE Filters NONE Steam 1 RUN: 9392b824-f32c-4037-845e-e49ee1b2c325